bitfinex-derivatives/quotes_ETHF0:USTF0_20250320
["timestamp","ask_amount","ask_price","bid_price","bid_amount"]
[1742459849938,0.9914,2017.1,2017.0,4.19925]
[1742459850238,3.851,2017.1,2016.8,1.38534472]
[1742459850437,2.0704,2017.0,2016.9,0.99148]
[1742459850635,3.06188,2017.0,2016.8,1.38534472]
[1742459850829,5.5967,2016.9,2016.8,1.38534472]
[1742459851532,4.6052,2016.9,2016.8,1.38534472]
[1742459851838,4.6052,2016.9,2016.8,2.37689472]
[1742459852029,4.6052,2016.9,2016.8,3.03129472]
[1742459852823,4.6052,2016.9,2016.8,2.03974472]
[1742459852824,5.5967,2016.9,2016.8,2.03974472]
[1742459853024,4.6052,2016.9,2016.8,3.03129472]
[1742459853532,5.5967,2016.9,2016.8,3.03129472]
[1742459853724,4.6052,2016.9,2016.8,3.03129472]
[1742459853923,5.5967,2016.9,2016.8,3.03129472]
[1742459854125,4.6052,2016.9,2016.8,3.03129472]
[1742459855043,5.5967,2016.9,2016.8,3.03129472]
[1742459855341,4.6052,2016.9,2016.8,3.03129472]
[1742459855727,5.5967,2016.9,2016.8,2.03974472]
[1742459856033,1.3942,2016.9,2016.8,3.03129472]
[1742459856233,5.1922,2017.0,2016.9,0.9915]
[1742459856529,4.516,2017.0,2016.9,3.052]
[1742459856734,3.209,2017.1,2016.9,2.0605]
[1742459856942,3.209,2017.1,2017.0,43.11515]
[1742459857141,0.99135,2017.2,2017.1,0.9914]
[1742459857338,6.90983,2017.3,2017.2,0.99135]
[1742459857634,0.99135,2017.2,2017.1,2.95599]
[1742459857839,2.32265,2017.2,2017.1,0.6409]
[1742459858440,2.32265,2017.2,2017.1,1.6323]
[1742459858742,5.57753,2017.3,2017.1,0.6409]
[1742459858942,0.99135,2017.2,2017.1,1.63226]
[1742459859143,0.99135,2017.2,2017.1,0.6409]
[1742459859340,2.32265,2017.2,2017.1,0.6409]
[1742459859842,2.32265,2017.2,2017.1,1.6323]
[1742459860041,2.32265,2017.2,2017.1,0.6409]
[1742459860544,3.208,2017.3,2017.1,1.6323]
[1742459860744,0.99135,2017.2,2017.1,1.6323]
[1742459861841,0.99135,2017.2,2017.1,0.6409]
[1742459862143,3.204,2017.6,2017.3,0.99128]
[1742459862344,2.27547,2017.4,2017.2,0.99131]
[1742459862541,1.2842,2017.4,2017.1,0.6409]
[1742459862735,0.99138,2017.2,2017.0,4.19923]
[1742459862939,1.3721,2017.1,2017.0,4.83913]
[1742459863436,0.6534,2017.2,2017.1,0.9914]
[1742459863644,2.0255,2017.2,2017.1,0.9914]
[1742459864036,3.01688,2017.2,2017.0,3.8477]
[1742459864237,1.3721,2017.1,2017.0,4.8391]
[1742459864940,2.3635,2017.1,2017.0,3.8477]
[1742459865334,2.3635,2017.1,2017.0,3.2078]
[1742459866638,1.3721,2017.1,2017.0,3.2078]
[1742459867039,2.3635,2017.1,2017.0,3.2078]
[1742459868939,2.3635,2017.1,2016.4,4.1995]
[1742459868940,2.47863,2017.0,2016.4,4.1995]
[1742459869247,3.2078,2016.8,2016.4,3.8952]
[1742459869445,3.226,2016.7,2016.6,0.99164]
[1742459869649,4.5585,2016.7,2016.5,0.99165]
[1742459869835,4.5585,2016.7,2016.6,0.99164]
[1742459870237,3.226,2016.7,2016.6,0.99164]
[1742459870845,0.99159,2016.8,2016.4,9.60800472]
[1742459871044,0.99156,2016.8,2016.7,0.99158]
[1742459871852,0.9916,2016.7,2016.6,0.9916]
[1742459872052,0.99158,2016.8,2016.6,0.9916]
[1742459872349,0.99158,2016.8,2016.7,0.6701]
[1742459873143,1.33994472,2016.9,2016.7,0.6701]
[1742459873345,1.33994472,2016.9,2016.8,0.99155]
[1742459873546,2.33146472,2016.9,2016.7,1.66165]
[1742459873744,0.99155,2016.8,2016.7,0.6701]
[1742459873951,0.99155,2016.8,2016.7,1.6617]
[1742459874459,0.99155,2016.8,2016.7,0.6701]
[1742459875143,0.99155,2016.8,2016.7,1.66167]
[1742459876052,2.33148472,2016.9,2016.7,0.6701]
[1742459876250,1.33994472,2016.9,2016.8,0.99155]
[1742459876546,0.00744472,2016.9,2016.8,4.19935]
[1742459877947,0.00744472,2016.9,2016.8,5.49025]
[1742459878142,3.2078,2017.6,2017.2,0.99135]
[1742459878347,1.3748,2017.3,2017.2,0.99135]
[1742459878545,5.58815,2017.3,2017.2,2.28225]
[1742459878953,5.58815,2017.3,2017.2,1.2909]
[1742459879154,5.58815,2017.3,2017.2,2.28225]
[1742459879355,5.58815,2017.3,2017.2,1.2909]
[1742459880060,0.99135,2017.2,2017.1,3.2078]
[1742459880250,3.04625,2017.2,2017.1,4.4987]
[1742459880553,2.0549,2017.2,2017.1,5.4901]
[1742459880750,3.222,2017.3,2017.2,0.99135]
[1742459880954,0.6395,2017.4,2017.3,0.9913]
[1742459881154,0.6395,2017.4,2017.2,2.38062]
[1742459881155,0.9913,2017.3,2017.2,2.38062]
[1742459881356,3.8585,2017.4,2017.2,2.38062]
[1742459881357,4.84979,2017.4,2017.2,2.38062]
[1742459881659,4.84979,2017.4,2017.3,1.3893]
[1742459882750,0.99135,2017.2,2017.1,3.2078]
[1742459883760,0.99134,2017.3,2017.1,4.19918]
[1742459883962,0.99134,2017.3,2017.2,1.3105]
[1742459885752,0.99135,2017.2,2017.1,3.2078]
[1742459885953,3.8585,2017.4,2017.1,3.2078]
[1742459886151,0.99134,2017.3,2017.2,1.3105]
[1742459886345,4.20834,2017.3,2017.2,1.3105]
[1742459887848,0.6395,2017.4,2017.2,1.3105]
[1742459888052,3.216,2017.7,2017.2,3.7888]
[1742459888253,1.67164,2017.7,2017.4,3.2078]
[1742459888461,0.99115,2017.6,2017.5,1.3483]
[1742459889567,8.9328,2017.6,2016.7,3.2078]
[1742459889756,0.99135,2017.2,2017.1,1.3483]
[1742459889956,7.42718,2017.2,2016.9,0.7032]
[1742459890156,0.6805,2017.1,2017.0,1.3532]
[1742459890659,0.6805,2017.1,2017.0,2.34465]
[1742459891069,0.6805,2017.1,2017.0,1.3532]
[1742459891258,0.6805,2017.1,2017.0,2.34465]
[1742459891566,0.6805,2017.1,2017.0,1.3532]
[1742459892060,0.99146,2017.0,2016.7,4.19936]
[1742459892264,4.21946,2017.0,2016.8,0.7064]
[1742459892660,0.9915,2016.9,2016.8,0.7064]
[1742459892856,4.21947,2017.0,2016.8,0.7064]
[1742459893059,0.9915,2016.9,2016.7,3.2078]
[1742459893365,3.228,2017.0,2016.7,3.2078]
[1742459893566,3.228,2017.0,2016.8,1.3452]
[1742459893567,4.21946,2017.0,2016.8,1.3452]
[1742459893756,3.228,2017.0,2016.8,2.33674]
[1742459893952,3.228,2017.0,2016.9,0.9915]
[1742459894269,3.228,2017.0,2016.9,1.3452]
[1742459894454,4.21945,2017.0,2016.9,1.3452]
[1742459895665,3.228,2017.0,2016.9,1.3452]
[1742459895868,4.21945,2017.0,2016.9,1.3452]
[1742459896365,4.90185,2017.0,2016.9,1.3452]
[1742459896753,0.99155,2016.8,2016.7,3.2078]
[1742459896958,3.231,2017.4,2016.9,0.99149]
[1742459897162,2.37684,2017.3,2017.0,4.4866]
[1742459897362,2.37684,2017.3,2017.1,1.2788]
[1742459897363,0.99135,2017.2,2017.1,1.2788]
[1742459897556,2.37683,2017.3,2017.1,1.2788]
[1742459897757,0.99135,2017.2,2017.1,1.2788]
[1742459897953,2.30335,2017.2,2017.1,1.2788]
[1742459899052,1.312,2017.2,2017.1,1.2788]
[1742459899267,2.30335,2017.2,2017.1,1.2788]
[1742459899468,5.53235,2017.2,2017.1,1.2788]
[1742459901858,4.541,2017.2,2017.1,2.2702]
[1742459902060,3.229,2017.2,2017.1,2.2702]
[1742459903070,3.229,2017.2,2017.1,1.2788]
[1742459903462,5.49905,2017.2,2017.1,1.2788]
[1742459904867,4.5077,2017.2,2017.1,1.2788]
[1742459905372,5.49905,2017.2,2017.1,1.2788]
[1742459906270,0.9914,2017.1,2017.0,3.2078]
[1742459906471,3.0131,2017.1,2017.0,4.5524]
[1742459907475,2.0217,2017.1,2017.0,4.5524]
[1742459907662,2.0217,2017.1,2017.0,6.21205]
[1742459907863,2.0217,2017.1,2017.0,5.2206]
[1742459907864,3.0131,2017.1,2017.0,5.2206]
[1742459908267,3.0131,2017.1,2017.0,4.5524]
[1742459908973,3.0131,2017.1,2016.7,4.5469]
[1742459908974,0.99151,2016.9,2016.7,4.5469]
[1742459909173,0.99151,2016.9,2016.8,1.4032]
[1742459909361,4.21651,2016.9,2016.8,1.4032]
[1742459909670,4.2165,2016.9,2016.8,1.4032]
[1742459910477,3.225,2016.9,2016.8,1.4032]
[1742459910775,4.2165,2016.9,2016.8,1.4032]
[1742459912377,3.225,2016.9,2016.8,1.4032]
[1742459912567,4.2165,2016.9,2016.8,1.4032]
[1742459914667,0.99164,2016.6,2016.5,0.6756]
[1742459914872,4.21264,2016.6,2016.5,0.6756]
[1742459915069,3.221,2016.6,2016.5,0.6756]
[1742459915281,3.221,2016.6,2016.5,1.66729]
[1742459916083,3.221,2016.6,2016.5,2.99719]
[1742459917371,4.21455,2016.8,2016.6,0.99164]
[1742459917574,5.68619,2017.2,2016.6,1.3097]
[1742459917766,0.99151,2016.9,2016.7,4.84455]
[1742459917974,0.99151,2016.9,2016.8,1.3097]
[1742459918370,4.21751,2016.9,2016.8,1.3097]
[1742459919478,3.226,2016.9,2016.8,2.30125]
[1742459919680,3.226,2016.9,2016.8,1.3097]
[1742459919878,3.226,2016.9,2016.8,2.30125]
[1742459921079,4.2175,2016.9,2016.8,1.3097]
[1742459921772,3.226,2016.9,2016.8,2.30125]
[1742459921976,4.2175,2016.9,2016.8,1.3097]
[1742459928385,4.8981,2016.9,2016.8,1.3097]
[1742459929487,3.226,2016.9,2016.8,1.3097]
[1742459929679,4.2175,2016.9,2016.8,1.3097]
[1742459929880,5.5442,2016.9,2016.8,1.3097]
[1742459930777,4.5527,2016.9,2016.8,2.30125]
[1742459931290,0.99155,2016.8,2016.7,3.2078]
[1742459931582,2.31825,2016.8,2016.7,3.2078]
[1742459931888,3.72355,2016.8,2016.7,3.2078]
[1742459933378,2.732,2016.8,2016.7,3.2078]
[1742459933690,2.732,2016.8,2016.7,5.4995]
[1742459934190,2.732,2016.8,2016.7,4.5079]
[1742459934390,2.732,2016.8,2016.7,5.4995]
[1742459936088,5.949,2016.8,2016.7,5.4995]
[1742459936890,4.5437,2016.8,2016.7,5.4995]
[1742459937086,3.217,2016.8,2016.7,5.4995]
[1742459940293,1.3464,2016.9,2016.8,0.99155]
[1742459940494,4.5594,2016.9,2016.8,2.30195]
[1742459940696,4.5594,2016.9,2016.8,2.98325]
[1742459940997,1.3464,2016.9,2016.8,2.98325]
[1742459941194,2.6384,2017.1,2017.0,0.99145]
[1742459941389,5.8514,2017.1,2016.9,1.9895]
[1742459941595,1.3084,2017.0,2016.9,1.6706]
[1742459941990,3.2078,2017.2,2016.9,0.6791]
[1742459942298,7.41117,2017.2,2017.0,0.99143]
[1742459942493,1.3658,2017.1,2017.0,0.99143]
[1742459942685,2.3572,2017.1,2016.9,1.67055]
[1742459943092,1.3658,2017.0,2016.9,1.67055]
[1742459944096,1.3658,2017.0,2016.9,0.6791]
[1742459944289,4.5858,2017.0,2016.7,4.87987]
[1742459944497,0.99151,2016.9,2016.7,4.87987]
[1742459944802,0.6498,2016.8,2016.7,4.87987]
[1742459945691,0.6498,2016.8,2016.7,3.8883]
[1742459945886,2.93215,2016.8,2016.7,3.2078]
[1742459946086,3.61925,2016.8,2016.7,3.2078]
[1742459946298,6.83725,2016.8,2016.7,3.2078]
[1742459947095,5.8457,2016.8,2016.7,4.1994]
[1742459947296,5.8457,2016.8,2016.7,3.2078]
[1742459947890,4.5088,2016.8,2016.7,4.1994]
[1742459948398,5.50035,2016.8,2016.7,3.2078]
[1742459948902,4.5088,2016.8,2016.7,3.2078]
[1742459949101,5.50035,2016.8,2016.7,3.2078]
[1742459949602,4.5088,2016.8,2016.7,3.2078]
[1742459949992,5.50035,2016.8,2016.7,3.2078]
[1742459950198,4.5088,2016.8,2016.7,3.2078]
[1742459950398,5.50035,2016.8,2016.7,3.2078]
[1742459950907,4.5088,2016.8,2016.7,3.2078]
[1742459951302,4.5088,2016.8,2016.7,4.1994]
[1742459951705,4.5088,2016.8,2016.7,3.2078]
[1742459951904,5.50035,2016.8,2016.7,3.2078]
[1742459953410,4.5088,2016.8,2016.7,3.2078]
[1742459953709,5.50035,2016.8,2016.7,3.2078]
[1742459958310,0.99169,2016.5,2016.4,3.21524472]
[1742459958504,4.20469,2016.5,2016.4,3.21524472]
[1742459958714,4.20469,2016.5,2016.4,0.00744472]
[1742459959204,5.61039,2016.5,2016.4,0.00744472]
[1742459962204,3.2078,2016.6,2016.4,0.00744472]
[1742459962409,3.213,2016.5,2016.4,0.99916472]
[1742459962710,3.213,2016.5,2016.4,43.21178472]
[1742459962913,3.213,2016.5,2016.4,42.22004472]
[1742459963114,3.213,2016.5,2016.4,1.42004472]
[1742459963416,3.213,2016.5,2016.4,2.41178472]
[1742459964109,0.99166,2016.6,2016.4,1.42004472]
[1742459964311,5.50966,2016.6,2016.5,1.3503]
[1742459964505,4.518,2016.6,2016.5,2.34199]
[1742459964705,3.216,2016.6,2016.5,1.3503]
[1742459965117,4.518,2016.6,2016.5,1.3503]
[1742459965421,5.50964,2016.6,2016.5,1.3503]
[1742459965716,4.518,2016.6,2016.5,1.3503]
[1742459966914,5.50964,2016.6,2016.5,1.3503]
[1742459968217,4.518,2016.6,2016.5,1.3503]
[1742459968518,5.50964,2016.6,2016.5,1.3503]
[1742459968919,4.518,2016.6,2016.5,1.3503]
[1742459969516,4.518,2016.6,2016.5,2.34199]
[1742459970620,5.50964,2016.6,2016.5,1.3503]
[1742459971119,4.518,2016.6,2016.5,2.34199]
[1742459971318,4.518,2016.6,2016.5,1.3503]
[1742459971623,4.518,2016.6,2016.5,2.34199]
[1742459972721,4.518,2016.6,2016.5,1.3503]
[1742459972913,4.518,2016.6,2016.5,2.34199]
[1742459973113,4.518,2016.6,2016.5,1.3503]
[1742459973414,0.99164,2016.6,2016.5,1.3503]
[1742459973617,2.31174,2016.6,2016.5,1.3503]
[1742459975920,1.3201,2016.6,2016.5,1.3503]
[1742459976119,2.31174,2016.6,2016.5,1.3503]
[1742459983126,0.99169,2016.5,2016.4,0.00744472]
[1742459983329,6.25469,2016.5,2016.4,0.00744472]
[1742459984420,6.25469,2016.5,2016.4,0.66924472]
[1742459984728,6.25469,2016.5,2016.4,2.06744472]
[1742459985223,5.263,2016.5,2016.4,2.06744472]
[1742459985429,6.25469,2016.5,2016.4,2.06744472]
[1742459986327,5.59119,2016.5,2016.4,2.06744472]
[1742459986726,5.59419,2016.5,2016.4,2.06744472]
[1742459987121,4.6025,2016.5,2016.4,2.06744472]
[1742459987330,4.6025,2016.5,2016.4,3.05918472]
[1742459987830,5.68657,2016.9,2016.4,2.06744472]
[1742459987831,3.2078,2016.9,2016.4,2.06744472]
[1742459988021,4.5972,2016.8,2016.6,0.9916]
[1742459988219,2.38075,2016.8,2016.7,2.0196]
[1742459988417,5.59075,2016.8,2016.7,2.0196]
[1742459990725,4.5992,2016.8,2016.7,2.0196]
[1742459990924,4.5992,2016.8,2016.7,3.6592]
[1742459991130,3.21,2016.8,2016.7,3.6592]
[1742459991833,3.208,2016.9,2016.8,0.99155]
[1742459992032,3.208,2016.9,2016.8,2.27075]
[1742459992628,4.1995,2016.9,2016.8,2.27075]
[1742459992827,5.5941,2016.9,2016.8,1.2792]
[1742459994627,4.6026,2016.9,2016.8,1.2792]
[1742459994831,4.6026,2016.9,2016.8,2.27075]
[1742459995233,5.5941,2016.9,2016.8,1.2792]
[1742459995728,5.5941,2016.9,2016.8,2.27075]
[1742459995928,4.6026,2016.9,2016.8,2.27075]
[1742459996423,5.5941,2016.9,2016.8,2.27075]
[1742459997335,5.5941,2016.9,2016.8,1.2792]
[1742459999332,4.6026,2016.9,2016.8,2.27075]
[1742459999532,5.5941,2016.9,2016.8,1.2792]
[1742459999732,4.6026,2016.9,2016.8,2.27075]
[1742459999932,5.5941,2016.9,2016.8,2.27075]
[1742460000136,5.5941,2016.9,2016.8,1.2792]
[1742460000837,0.9916,2016.7,2016.6,3.2078]
[1742460001035,4.1916,2016.7,2016.6,1.4027]
[1742460001529,5.5473,2016.7,2016.6,1.4027]
[1742460003533,5.5473,2016.7,2016.4,1.39434472]
[1742460003534,0.99169,2016.5,2016.4,1.39434472]
[1742460003835,4.19669,2016.5,2016.4,1.32864472]
[1742460004239,4.85169,2016.5,2016.4,1.32864472]
[1742460005143,3.86,2016.5,2016.4,2.32038472]
[1742460005639,5.2182,2016.5,2016.4,1.32864472]
[1742460005838,5.2182,2016.5,2016.4,2.32038472]
[1742460006034,5.2182,2016.5,2016.4,1.32864472]
[1742460006337,3.8888,2016.8,2016.4,1.32864472]
[1742460006636,0.99166,2016.6,2016.4,1.32864472]
[1742460006840,1.407,2016.5,2016.4,1.32864472]
[1742460007333,2.39869,2016.5,2016.4,1.32864472]
[1742460008443,5.60469,2016.5,2016.4,1.32864472]
[1742460009540,5.60469,2016.5,2016.4,0.00744472]
[1742460011851,0.99189,2016.1,2016.0,3.2078]
[1742460012055,4.19989,2016.1,2016.0,1.4035]
[1742460012449,4.6116,2016.1,2016.0,1.4035]
[1742460012643,5.60349,2016.1,2016.0,1.4035]
[1742460013449,4.6116,2016.1,2016.0,4.6113]
[1742460013855,4.6116,2016.1,2016.0,5.2792]
[1742460014051,4.6116,2016.1,2016.0,6.27114]
[1742460014457,4.6116,2016.1,2016.0,5.2792]
[1742460015053,5.60349,2016.1,2016.0,5.2792]
[1742460015652,5.60349,2016.1,2016.0,4.6113]
[1742460016258,5.60349,2016.1,2016.0,3.2078]
[1742460016461,0.99199,2015.9,2015.8,0.00744472]
[1742460016758,4.19899,2015.9,2015.8,0.00744472]
[1742460017157,4.87649,2015.9,2015.8,0.00744472]
[1742460017558,6.27639,2015.9,2015.8,1.29194472]
[1742460027168,6.27639,2015.9,2015.8,0.00744472]
[1742460027564,9.48419,2015.9,2015.8,0.00744472]
[1742460027872,11.98419,2015.9,2015.8,0.00744472]
[1742460028769,0.99219,2015.5,2015.4,3.2078]
[1742460028971,4.19419,2015.5,2015.4,3.2078]
[1742460029569,5.53539,2015.5,2015.4,3.2078]
[1742460029966,0.99223,2015.4,2015.3,1.3648]
[1742460030280,2.33343,2015.4,2015.3,1.3648]
[1742460030673,0.99228,2015.3,2015.2,0.00744472]
[1742460030867,6.23388,2015.3,2015.2,1.29884472]
[1742460032871,3.202,2015.3,2015.2,2.29117472]
[1742460033973,4.19428,2015.3,2015.2,2.29117472]
[1742460034178,3.202,2015.3,2015.2,2.29117472]
[1742460034582,4.19428,2015.3,2015.2,1.29884472]
[1742460037880,4.89808,2015.3,2015.2,1.29884472]
[1742460038383,4.19428,2015.3,2015.2,1.29884472]
[1742460040277,4.86788,2015.3,2015.2,1.29884472]
[1742460041284,4.86788,2015.3,2015.2,0.00744472]
[1742460041581,8.07568,2015.3,2015.2,0.00744472]
[1742460046083,8.15952037,2015.3,2015.2,0.00744472]
[1742460046286,10.65952037,2015.3,2015.2,0.00744472]
[1742460047577,10.65951798,2015.3,2015.2,0.00744472]
[1742460049278,10.65951813,2015.3,2015.2,0.00744472]
[1742460053484,8.07668,2015.3,2015.2,0.00744472]
[1742460057693,10.57668,2015.3,2015.2,4.72e-06]
[1742460057893,10.66051939,2015.3,2015.2,4.72e-06]
[1742460059690,10.66052192,2015.3,2015.2,4.72e-06]
[1742460059889,8.16052192,2015.3,2015.2,4.72e-06]
[1742460060485,10.66052192,2015.3,2015.2,4.72e-06]
[1742460060688,0.99243,2015.0,2014.9,1.3285]
[1742460060887,4.19543,2015.0,2014.9,1.3285]
[1742460061097,7.40323,2015.0,2014.9,1.3285]
[1742460061497,8.05633,2015.0,2014.9,1.3285]
[1742460062693,0.99253,2014.8,2014.7,0.00744472]
[1742460062898,4.19553,2014.8,2014.7,0.00744472]
[1742460064099,5.48953,2014.8,2014.7,0.00744472]
[1742460065300,4.19553,2014.8,2014.7,0.68414472]
[1742460072792,7.01365,2015.0,2014.7,0.68414472]
[1742460072793,0.99245,2015.0,2014.7,0.68414472]
[1742460072994,3.203,2014.9,2014.8,2.0303]
[1742460073402,4.19548,2014.9,2014.8,2.0303]
[1742460075907,0.99248,2014.9,2014.8,2.0303]
[1742460076204,4.19548,2014.9,2014.8,2.0303]
[1742460080508,4.84178,2014.9,2014.8,2.0303]
[1742460081409,5.49338,2014.9,2014.8,1.3504]
[1742460082304,4.5009,2014.9,2014.8,1.3504]
[1742460082498,3.203,2014.9,2014.8,2.0234]
[1742460082701,4.19548,2014.9,2014.8,2.0234]
[1742460083312,5.48548,2014.9,2014.8,2.0234]
[1742460083608,3.203,2014.9,2014.8,2.0234]
[1742460085297,4.19548,2014.9,2014.8,2.0234]
[1742460085705,3.203,2014.9,2014.8,2.0234]
[1742460085912,4.19548,2014.9,2014.8,2.0234]
[1742460086111,3.203,2014.9,2014.8,2.0234]
[1742460086714,4.19548,2014.9,2014.8,2.0234]
[1742460087808,3.203,2014.9,2014.8,3.01593]
[1742460088311,4.19548,2014.9,2014.8,3.01593]
[1742460088511,3.203,2014.9,2014.8,3.01593]
[1742460088698,0.00744472,2015.2,2015.1,0.99238]
[1742460088899,45.878,2015.8,2015.1,3.2078]
[1742460089100,45.878,2015.8,2014.8,6.376]
[1742460089101,0.99219,2015.5,2015.4,3.2078]
[1742460089306,4.5456,2015.7,2015.4,3.2078]
[1742460089501,0.99219,2015.5,2015.4,4.20002]
[1742460089709,0.99219,2015.5,2015.4,3.2078]
[1742460090214,4.19519,2015.5,2015.4,4.20003]
[1742460090410,4.19519,2015.5,2015.4,3.2078]
[1742460090816,3.203,2015.5,2015.4,4.20003]
[1742460091514,0.99214,2015.6,2015.4,3.2078]
[1742460091716,3.203,2015.5,2015.4,4.20003]
[1742460092513,0.99214,2015.6,2015.5,0.99219]
[1742460092810,4.19514,2015.6,2015.5,0.99219]
[1742460093003,3.203,2015.6,2015.4,4.2]
[1742460093307,0.99219,2015.5,2015.4,3.2078]
[1742460093816,0.99219,2015.5,2015.4,4.20003]
[1742460094011,2.36649,2015.5,2015.4,4.20003]
[1742460094814,3.203,2015.6,2015.5,0.99219]
[1742460095209,1.32664472,2015.7,2015.6,0.99214]
[1742460095413,4.52964472,2015.7,2015.6,0.99214]
[1742460095614,5.52173472,2015.7,2015.6,0.99214]
[1742460096111,2.31873472,2015.7,2015.6,0.99214]
[1742460096313,5.52073472,2015.7,2015.6,0.99214]
[1742460096616,5.52073472,2015.7,2015.5,0.99214]
[1742460096816,0.99214,2015.6,2015.5,0.99214]
[1742460097010,0.99217,2015.6,2015.4,3.2078]
[1742460097206,2.31136,2015.6,2015.4,3.2078]
[1742460097518,2.31136,2015.6,2015.5,0.99219]
[1742460097816,1.3192,2015.6,2015.5,0.99219]
[1742460098612,4.5212,2015.6,2015.5,0.99219]
[1742460098811,4.19414,2015.6,2015.5,0.99219]
[1742460099009,2.40976472,2015.7,2015.6,0.99214]
[1742460099511,4.61964472,2015.7,2015.6,0.99214]
[1742460099713,0.99214,2015.6,2015.4,3.2078]
[1742460099915,0.99219,2015.5,2015.4,4.2]
[1742460100613,2.40238,2015.6,2015.5,0.99219]
[1742460100810,0.99219,2015.5,2015.4,4.2]
[1742460101814,2.40237,2015.6,2015.4,3.2078]
[1742460102017,2.40237,2015.6,2015.5,0.99219]
[1742460102510,0.99219,2015.5,2015.4,4.2]
[1742460102811,1.4102,2015.6,2015.5,0.99219]
[1742460103515,0.00744472,2015.7,2015.6,0.99214]
[1742460104018,0.00744472,2015.7,2015.4,8.08757314]
[1742460104218,0.99217,2015.6,2015.5,0.99217]
[1742460104617,4.19417,2015.6,2015.5,0.99217]
[1742460105024,4.19417,2015.6,2015.5,1.68197]
[1742460105219,5.55737472,2015.7,2015.6,0.99214]
[1742460106410,5.55733472,2015.7,2015.6,0.99214]
[1742460106613,5.55733472,2015.7,2015.6,1.68944]
[1742460108221,5.55733472,2015.7,2015.6,2.0566]
[1742460109423,5.55733472,2015.7,2015.6,3.04874]
[1742460109629,5.55733472,2015.7,2015.6,2.0566]
[1742460110027,5.55733472,2015.7,2015.6,3.04874]
[1742460110222,4.56524472,2015.7,2015.6,3.04874]
[1742460110424,5.55733472,2015.7,2015.6,2.0566]
[1742460110726,5.55733472,2015.7,2015.6,3.04874]
[1742460111325,5.55733472,2015.7,2015.6,2.0566]
[1742460111913,4.56424472,2015.7,2015.6,3.04874]
[1742460112120,5.55633472,2015.7,2015.6,2.0566]
[1742460112543,0.99219,2015.5,2015.4,8.08757314]
[1742460112827,4.19319,2015.5,2015.4,8.08757314]
[1742460113227,3.8486,2015.5,2015.4,8.08757314]
[1742460113428,4.84079,2015.5,2015.4,8.08757314]
[1742460113730,5.53739,2015.5,2015.4,8.08757314]
[1742460113929,4.5452,2015.5,2015.4,9.07980314]
[1742460114323,6.82699,2015.5,2015.4,8.08757314]
[1742460114821,6.82699,2015.5,2015.4,9.49167314]
[1742460115029,5.8348,2015.5,2015.4,10.48390314]
[1742460115423,5.8348,2015.5,2015.4,5.60413]
[1742460116734,6.82699,2015.5,2015.4,4.6119]
[1742460117427,6.82699,2015.5,2015.4,5.60413]
[1742460117631,6.82699,2015.5,2015.4,4.6119]
[1742460117929,0.00744472,2015.7,2015.6,0.99214]
[1742460118319,0.99953472,2015.7,2015.6,1.4095]
[1742460118629,2.36963472,2015.7,2015.6,1.4095]
[1742460121828,1.37754472,2015.7,2015.6,1.4095]
[1742460122028,2.36963472,2015.7,2015.6,1.4095]
[1742460123234,1.37754472,2015.7,2015.6,1.4095]
[1742460123435,2.36963472,2015.7,2015.6,1.4095]
[1742460125437,0.99219,2015.5,2015.4,3.2078]
[1742460125637,4.19319,2015.5,2015.4,3.2078]
[1742460126736,3.201,2015.5,2015.4,3.2078]
[1742460127033,4.5154,2015.5,2015.4,5.56443]
[1742460127428,3.201,2015.5,2015.4,5.56443]
[1742460129741,0.99956472,2015.7,2015.6,0.99214]
[1742460130040,0.99956472,2015.7,2015.5,1.3425]
[1742460130041,4.20056472,2015.7,2015.5,1.3425]
[1742460130236,4.20056472,2015.7,2015.6,0.641]
[1742460130438,0.99956472,2015.7,2015.6,1.3171]
[1742460130635,4.20056472,2015.7,2015.6,1.3171]
[1742460131139,4.20056472,2015.7,2015.6,2.30924]
[1742460131741,4.20056472,2015.7,2015.6,1.3171]
[1742460132232,4.20056472,2015.7,2015.6,2.7111]
[1742460132936,0.00744472,2015.7,2015.6,3.70324]
[1742460133131,0.99193,2016.1,2016.0,0.99194]
[1742460133132,1.3089,2016.1,2016.0,0.99194]
[1742460133440,5.50181,2016.1,2015.9,0.99196]
[1742460133639,0.99194,2016.0,2015.8,4.6018]
[1742460133840,5.50183,2016.1,2016.0,0.99194]
[1742460134138,4.19292,2016.1,2016.0,0.99191]
[1742460134441,2.28699,2016.1,2016.0,2.27701]
[1742460134642,5.48799,2016.1,2016.0,2.27701]
[1742460135253,5.48799,2016.1,2016.0,1.2851]
[1742460135841,5.48799,2016.1,2016.0,2.27704]
[1742460139146,4.4961,2016.1,2016.0,2.27704]
[1742460139349,3.201,2016.1,2016.0,2.27704]
[1742460140542,4.513,2016.1,2016.0,2.27704]
[1742460140743,5.50489,2016.1,2016.0,2.27704]
[1742460141341,5.50489,2016.1,2016.0,1.2851]
[1742460142852,5.50489,2016.1,2016.0,2.27704]
[1742460143354,5.50489,2016.1,2016.0,1.2851]
[1742460143746,4.513,2016.1,2016.0,2.27704]
[1742460144849,3.201,2016.1,2016.0,2.27704]
[1742460146153,4.5218,2016.1,2016.0,2.27704]
[1742460146453,5.51369,2016.1,2016.0,2.27704]
[1742460146952,4.5218,2016.1,2016.0,2.27704]
[1742460147345,3.201,2016.1,2016.0,2.27704]
[1742460149649,0.00744472,2016.3,2016.0,1.2851]
[1742460149855,4.19927472,2016.3,2016.2,0.99184]